[Event "*** SCC Grand Prix: Titled Tuesday Blitz"]
[Site "Chess.com"]
[Date "2020.08.04"]
[Round "3"]
[White "Artem_Sadovsky"]
[Black "Sashadav97"]
[Result "1/2-1/2"]
[WhiteElo "2399"]
[BlackElo "2586"]
[TimeControl "180+1"]
[EndTime "14:14:16 PDT"]
[Termination "Game drawn by stalemate"]

1. Nf3 {[%clk 0:03:00]} 1... d5 {[%clk 0:02:59]} 2. g3 {[%clk 0:02:57.6]} 2...
Nf6 {[%clk 0:02:58.1]} 3. Bg2 {[%clk 0:02:57.8]} 3... c6 {[%clk 0:02:58.4]} 4.
O-O {[%clk 0:02:57.7]} 4... Bg4 {[%clk 0:02:56.3]} 5. b3 {[%clk 0:02:54.7]} 5...
e6 {[%clk 0:02:53.1]} 6. Bb2 {[%clk 0:02:54.5]} 6... Nbd7 {[%clk 0:02:53.6]} 7.
c4 {[%clk 0:02:54]} 7... Bd6 {[%clk 0:02:53.8]} 8. d3 {[%clk 0:02:52.3]} 8...
O-O {[%clk 0:02:53.6]} 9. Nbd2 {[%clk 0:02:51.7]} 9... Re8 {[%clk 0:02:50.7]}
10. Qc2 {[%clk 0:02:50.1]} 10... Qe7 {[%clk 0:02:49.8]} 11. Rad1 {[%clk
0:02:47]} 11... Rad8 {[%clk 0:02:49.2]} 12. Rfe1 {[%clk 0:02:27]} 12... e5
{[%clk 0:02:47.9]} 13. cxd5 {[%clk 0:02:23.2]} 13... cxd5 {[%clk 0:02:48.8]} 14.
e4 {[%clk 0:02:22.4]} 14... d4 {[%clk 0:02:48]} 15. h3 {[%clk 0:02:15.5]} 15...
Bh5 {[%clk 0:02:47]} 16. Rc1 {[%clk 0:02:10.6]} 16... Ba3 {[%clk 0:02:44.2]} 17.
Bxa3 {[%clk 0:02:03]} 17... Qxa3 {[%clk 0:02:45.1]} 18. Nc4 {[%clk 0:01:57.9]}
18... Qe7 {[%clk 0:02:43.5]} 19. Na5 {[%clk 0:01:50]} 19... Nb6 {[%clk
0:02:23.7]} 20. Qc5 {[%clk 0:01:42.6]} 20... Rd7 {[%clk 0:01:17.2]} 21. g4
{[%clk 0:01:20.3]} 21... Bg6 {[%clk 0:01:13.5]} 22. Qxe7 {[%clk 0:01:15.6]}
22... Rexe7 {[%clk 0:01:11.4]} 23. Rc5 {[%clk 0:01:12.6]} 23... Rc7 {[%clk
0:00:45.1]} 24. Rec1 {[%clk 0:01:12]} 24... Rxc5 {[%clk 0:00:30.8]} 25. Rxc5
{[%clk 0:01:12.9]} 25... Nfd7 {[%clk 0:00:30.9]} 26. Rc7 {[%clk 0:01:11.9]}
26... f6 {[%clk 0:00:22.9]} 27. Nxb7 {[%clk 0:00:58.8]} 27... Kf8 {[%clk
0:00:17.8]} 28. a4 {[%clk 0:00:49.9]} 28... Nb8 {[%clk 0:00:17.6]} 29. Rxe7
{[%clk 0:00:21.3]} 29... Kxe7 {[%clk 0:00:18.5]} 30. Nd2 {[%clk 0:00:16.6]}
30... Kd7 {[%clk 0:00:13.9]} 31. Na5 {[%clk 0:00:15.5]} 31... Bf7 {[%clk
0:00:11]} 32. Nac4 {[%clk 0:00:12.7]} 32... Nc6 {[%clk 0:00:09.4]} 33. Bf1
{[%clk 0:00:08.1]} 33... Kc7 {[%clk 0:00:07]} 34. h4 {[%clk 0:00:05.1]} 34...
Nb4 {[%clk 0:00:04.7]} 35. a5 {[%clk 0:00:02.8]} 35... Nd7 {[%clk 0:00:04.4]}
36. g5 {[%clk 0:00:02]} 36... Nc5 {[%clk 0:00:04.3]} 37. gxf6 {[%clk 0:00:02.3]}
37... gxf6 {[%clk 0:00:05.2]} 38. f4 {[%clk 0:00:02.7]} 38... Nbxd3 {[%clk
0:00:04.8]} 39. fxe5 {[%clk 0:00:02.8]} 39... Nxe5 {[%clk 0:00:04.1]} 40. b4
{[%clk 0:00:02.1]} 40... Nxc4 {[%clk 0:00:03.5]} 41. Bxc4 {[%clk 0:00:02.1]}
41... Bxc4 {[%clk 0:00:04.1]} 42. bxc5 {[%clk 0:00:02.3]} 42... Bd3 {[%clk
0:00:03.7]} 43. Nf3 {[%clk 0:00:02.3]} 43... Bxe4 {[%clk 0:00:03.1]} 44. Nxd4
{[%clk 0:00:03.2]} 44... f5 {[%clk 0:00:03.4]} 45. Kf2 {[%clk 0:00:03.8]} 45...
f4 {[%clk 0:00:03.3]} 46. Ne6+ {[%clk 0:00:03.7]} 46... Kc6 {[%clk 0:00:03.4]}
47. Nxf4 {[%clk 0:00:03.5]} 47... Kxc5 {[%clk 0:00:04]} 48. Ke3 {[%clk 0:00:04]}
48... Bf5 {[%clk 0:00:04.6]} 49. Nh5 {[%clk 0:00:02.2]} 49... Kb5 {[%clk
0:00:04.8]} 50. Kf4 {[%clk 0:00:02.5]} 50... Bc2 {[%clk 0:00:04.4]} 51. Nf6
{[%clk 0:00:02.8]} 51... Kxa5 {[%clk 0:00:04.9]} 52. Ke3 {[%clk 0:00:02]} 52...
Kb4 {[%clk 0:00:05]} 53. Kd2 {[%clk 0:00:02.9]} 53... Bf5 {[%clk 0:00:04.8]} 54.
Kc1 {[%clk 0:00:02.3]} 54... a5 {[%clk 0:00:04.7]} 55. Kb2 {[%clk 0:00:02.1]}
55... h6 {[%clk 0:00:03.4]} 56. Ng8 {[%clk 0:00:02.2]} 56... h5 {[%clk
0:00:03.8]} 57. Nf6 {[%clk 0:00:01.9]} 57... Bg6 {[%clk 0:00:03.3]} 58. Nxh5
{[%clk 0:00:02.8]} 58... Bxh5 {[%clk 0:00:04.1]} 59. Ka1 {[%clk 0:00:03]} 59...
Be8 {[%clk 0:00:04.6]} 60. Kb1 {[%clk 0:00:03.9]} 60... a4 {[%clk 0:00:05.3]}
61. Ka1 {[%clk 0:00:04.8]} 61... Kc4 {[%clk 0:00:05.4]} 62. Kb1 {[%clk
0:00:05.7]} 62... Kd4 {[%clk 0:00:06.1]} 63. Ka1 {[%clk 0:00:06.6]} 63... Ke5
{[%clk 0:00:06.8]} 64. Kb1 {[%clk 0:00:07.5]} 64... Kf5 {[%clk 0:00:07.4]} 65.
Ka1 {[%clk 0:00:08.4]} 65... Kg4 {[%clk 0:00:07.9]} 66. Kb1 {[%clk 0:00:09.3]}
66... Kxh4 {[%clk 0:00:08.5]} 67. Ka1 {[%clk 0:00:10.2]} 67... Kg4 {[%clk
0:00:09.3]} 68. Kb1 {[%clk 0:00:10.6]} 68... Kf4 {[%clk 0:00:10.2]} 69. Ka1
{[%clk 0:00:11.5]} 69... Ke4 {[%clk 0:00:11.1]} 70. Kb1 {[%clk 0:00:12.3]} 70...
Kd4 {[%clk 0:00:12]} 71. Ka1 {[%clk 0:00:13.2]} 71... Kc4 {[%clk 0:00:12.9]} 72.
Kb1 {[%clk 0:00:14.1]} 72... Kb3 {[%clk 0:00:13.8]} 73. Ka1 {[%clk 0:00:15]}
73... Ka3 {[%clk 0:00:14.6]} 74. Kb1 {[%clk 0:00:15.9]} 74... Bf7 {[%clk
0:00:15.3]} 75. Ka1 {[%clk 0:00:16.8]} 75... Ba2 {[%clk 0:00:15.9]} 1/2-1/2

[Event "*** SCC Grand Prix: Titled Tuesday Blitz"]
[Site "Chess.com"]
[Date "2020.08.04"]
[Round "3"]
[White "Lagmantr"]
[Black "VerdeNotte"]
[Result "1-0"]
[WhiteElo "2649"]
[BlackElo "2851"]
[TimeControl "180+1"]
[EndTime "14:14:22 PDT"]
[Termination "Lagmantr won by resignation"]

1. e4 {[%clk 0:03:00.9]} 1... e5 {[%clk 0:02:55.8]} 2. Nf3 {[%clk 0:03:00.9]}
2... Nc6 {[%clk 0:02:56.1]} 3. Nc3 {[%clk 0:03:01.2]} 3... Nf6 {[%clk 0:02:56]}
4. Be2 {[%clk 0:03:01.8]} 4... d6 {[%clk 0:02:45.3]} 5. d4 {[%clk 0:03:00.4]}
5... Be7 {[%clk 0:02:40]} 6. dxe5 {[%clk 0:02:59.4]} 6... Nxe5 {[%clk
0:02:38.5]} 7. Nxe5 {[%clk 0:02:56.1]} 7... dxe5 {[%clk 0:02:39.4]} 8. Qxd8+
{[%clk 0:02:56.3]} 8... Bxd8 {[%clk 0:02:39.6]} 9. Be3 {[%clk 0:02:55.2]} 9...
Be6 {[%clk 0:02:37.8]} 10. f3 {[%clk 0:02:55.1]} 10... c6 {[%clk 0:02:37.3]} 11.
O-O-O {[%clk 0:02:53.7]} 11... Bb6 {[%clk 0:02:36.4]} 12. Bxb6 {[%clk
0:02:45.3]} 12... axb6 {[%clk 0:02:37.3]} 13. b3 {[%clk 0:02:45.1]} 13... b5
{[%clk 0:02:32.5]} 14. a4 {[%clk 0:02:44.8]} 14... bxa4 {[%clk 0:02:22.1]} 15.
Nxa4 {[%clk 0:02:42.1]} 15... Nd7 {[%clk 0:02:22.3]} 16. Kb2 {[%clk 0:02:41.8]}
16... Ke7 {[%clk 0:02:22.2]} 17. Ra1 {[%clk 0:01:42.6]} 17... h5 {[%clk
0:02:21.7]} 18. h4 {[%clk 0:01:36.2]} 18... b5 {[%clk 0:02:16.3]} 19. Nc3 {[%clk
0:01:35.7]} 19... Kd6 {[%clk 0:02:16.5]} 20. g3 {[%clk 0:01:09]} 20... f6 {[%clk
0:02:09.9]} 21. Rhd1+ {[%clk 0:00:31.9]} 21... Kc7 {[%clk 0:02:09.3]} 22. Bf1
{[%clk 0:00:31.9]} 22... Nc5 {[%clk 0:02:03.6]} 23. Ne2 {[%clk 0:00:31.9]} 23...
Kb7 {[%clk 0:01:49.7]} 24. Rxa8 {[%clk 0:00:30.1]} 24... Rxa8 {[%clk 0:01:49.2]}
25. Nc1 {[%clk 0:00:30.5]} 25... Kc7 {[%clk 0:01:44.2]} 26. Nd3 {[%clk 0:00:30]}
26... Nxd3+ {[%clk 0:01:27.2]} 27. Bxd3 {[%clk 0:00:29.6]} 27... b4 {[%clk
0:01:23.2]} 28. Ra1 {[%clk 0:00:26.2]} 28... Rxa1 {[%clk 0:01:22.5]} 29. Kxa1
{[%clk 0:00:27.1]} 29... g5 {[%clk 0:01:14.3]} 30. Kb2 {[%clk 0:00:19.6]} 30...
Kd6 {[%clk 0:01:14.3]} 31. c3 {[%clk 0:00:19.3]} 31... Kc5 {[%clk 0:01:14.7]}
32. Kc2 {[%clk 0:00:19.5]} 32... Bh3 {[%clk 0:01:10]} 33. Be2 {[%clk 0:00:18.2]}
33... Bg2 {[%clk 0:00:46.3]} 34. Kd2 {[%clk 0:00:16.9]} 34... Bh1 {[%clk
0:00:43.1]} 35. Kc2 {[%clk 0:00:16.4]} 35... g4 {[%clk 0:00:39.4]} 36. fxg4
{[%clk 0:00:16]} 36... Bxe4+ {[%clk 0:00:39.7]} 37. Kd2 {[%clk 0:00:12.1]} 37...
hxg4 {[%clk 0:00:39.4]} 38. Bxg4 {[%clk 0:00:11.9]} 38... bxc3+ {[%clk
0:00:36.8]} 39. Kxc3 {[%clk 0:00:11.4]} 39... Bh7 {[%clk 0:00:33.3]} 40. h5
{[%clk 0:00:10.3]} 40... e4 {[%clk 0:00:33.1]} 41. h6 {[%clk 0:00:09.2]} 41...
Kd5 {[%clk 0:00:30.3]} 42. Be2 {[%clk 0:00:08.2]} 42... f5 {[%clk 0:00:22.9]}
43. Bf1 {[%clk 0:00:04.8]} 43... Ke5 {[%clk 0:00:20.2]} 44. Kc4 {[%clk
0:00:04.1]} 44... Kf6 {[%clk 0:00:15]} 45. Kc5 {[%clk 0:00:03.9]} 45... Kg5
{[%clk 0:00:12.8]} 46. Kxc6 {[%clk 0:00:03.4]} 46... Kg4 {[%clk 0:00:10.7]} 47.
b4 {[%clk 0:00:03.1]} 47... Kxg3 {[%clk 0:00:10.9]} 48. b5 {[%clk 0:00:03.4]}
48... e3 {[%clk 0:00:10.3]} 49. b6 {[%clk 0:00:03.2]} 49... Kf2 {[%clk
0:00:09.8]} 50. b7 {[%clk 0:00:03.3]} 50... Kxf1 {[%clk 0:00:09.8]} 51. b8=Q
{[%clk 0:00:03.5]} 51... e2 {[%clk 0:00:10.1]} 52. Qf4+ {[%clk 0:00:03]} 52...
Kg2 {[%clk 0:00:10.5]} 53. Qe3 {[%clk 0:00:02.4]} 53... Kf1 {[%clk 0:00:10.9]}
54. Qf3+ {[%clk 0:00:02.5]} 54... Ke1 {[%clk 0:00:11.3]} 55. Kd5 {[%clk
0:00:02.2]} 55... Kd2 {[%clk 0:00:10.4]} 56. Qf4+ {[%clk 0:00:02.6]} 56... Kd3
{[%clk 0:00:10.6]} 57. Qd4+ {[%clk 0:00:02.8]} 57... Kc2 {[%clk 0:00:10.8]} 58.
Qe3 {[%clk 0:00:03.3]} 58... Kd1 {[%clk 0:00:10.4]} 59. Qd3+ {[%clk 0:00:03.5]}
59... Ke1 {[%clk 0:00:10.9]} 60. Kd4 {[%clk 0:00:04.2]} 60... Kf1 {[%clk
0:00:08.6]} 61. Qf3+ {[%clk 0:00:04]} 61... Kg1 {[%clk 0:00:08.3]} 62. Qxe2
{[%clk 0:00:03.6]} 62... f4 {[%clk 0:00:08.7]} 63. Qf3 {[%clk 0:00:03.6]} 63...
Kh2 {[%clk 0:00:08.5]} 64. Qxf4+ {[%clk 0:00:04]} 64... Kh3 {[%clk 0:00:09.3]}
65. Qf7 {[%clk 0:00:04.5]} 65... Bb1 {[%clk 0:00:05.9]} 66. Qg7 {[%clk
0:00:05.4]} 1-0

[Event "*** SCC Grand Prix: Titled Tuesday Blitz"]
[Site "Chess.com"]
[Date "2020.08.04"]
[Round "3"]
[White "XDPS"]
[Black "MichailovM"]
[Result "1-0"]
[WhiteElo "2675"]
[BlackElo "2425"]
[TimeControl "180+1"]
[EndTime "14:14:29 PDT"]
[Termination "XDPS won by resignation"]

1. d4 {[%clk 0:03:00.9]} 1... Nf6 {[%clk 0:02:59.8]} 2. Bf4 {[%clk 0:02:53.3]}
2... g6 {[%clk 0:02:59.6]} 3. Nc3 {[%clk 0:02:53.2]} 3... d5 {[%clk 0:02:59.7]}
4. e3 {[%clk 0:02:53.1]} 4... Bg7 {[%clk 0:02:59.5]} 5. Be2 {[%clk 0:02:53.5]}
5... c6 {[%clk 0:02:57.5]} 6. Nf3 {[%clk 0:02:49.9]} 6... Bf5 {[%clk 0:02:56.8]}
7. O-O {[%clk 0:02:49.6]} 7... Nbd7 {[%clk 0:02:56.9]} 8. Ne5 {[%clk 0:02:49.4]}
8... O-O {[%clk 0:02:49.7]} 9. h3 {[%clk 0:02:48.3]} 9... Qb6 {[%clk 0:02:46.1]}
10. Na4 {[%clk 0:02:45.2]} 10... Qa5 {[%clk 0:02:45.8]} 11. c3 {[%clk
0:02:32.4]} 11... Rac8 {[%clk 0:02:31.5]} 12. b4 {[%clk 0:02:30.5]} 12... Qd8
{[%clk 0:02:31]} 13. Nc5 {[%clk 0:02:30.3]} 13... Nxc5 {[%clk 0:02:14.4]} 14.
bxc5 {[%clk 0:02:29.3]} 14... Ne4 {[%clk 0:02:10.3]} 15. Qb3 {[%clk 0:01:53.3]}
15... f6 {[%clk 0:01:57.1]} 16. Nf3 {[%clk 0:01:50.9]} 16... b6 {[%clk
0:01:52.5]} 17. cxb6 {[%clk 0:01:49.2]} 17... Qxb6 {[%clk 0:01:41.2]} 18. c4
{[%clk 0:01:42.8]} 18... Qxb3 {[%clk 0:01:12.3]} 19. axb3 {[%clk 0:01:42.7]}
19... Nc3 {[%clk 0:01:12.5]} 20. Rfe1 {[%clk 0:01:41]} 20... Nxe2+ {[%clk
0:01:11.8]} 21. Rxe2 {[%clk 0:01:41.9]} 21... Bd3 {[%clk 0:01:06.5]} 22. Rd2
{[%clk 0:01:38.4]} 22... dxc4 {[%clk 0:01:06.6]} 23. bxc4 {[%clk 0:01:39.3]}
23... Bxc4 {[%clk 0:01:07.1]} 24. Rxa7 {[%clk 0:01:39.7]} 24... Rf7 {[%clk
0:01:04]} 25. Rc2 {[%clk 0:01:32.9]} 25... Bd5 {[%clk 0:01:03.4]} 26. Nd2 {[%clk
0:01:25.4]} 26... e5 {[%clk 0:01:03.1]} 27. Rxf7 {[%clk 0:01:26.3]} 27... Kxf7
{[%clk 0:01:03.2]} 28. dxe5 {[%clk 0:01:26.5]} 28... fxe5 {[%clk 0:01:04.1]} 29.
Bg3 {[%clk 0:01:26.8]} 29... e4 {[%clk 0:00:54.5]} 30. Nc4 {[%clk 0:01:13.3]}
30... Ke6 {[%clk 0:00:52.8]} 31. Nb6 {[%clk 0:01:07.1]} 31... Rd8 {[%clk
0:00:47.7]} 32. Bc7 {[%clk 0:01:05.6]} 32... Rf8 {[%clk 0:00:44.6]} 33. Bg3
{[%clk 0:01:00.1]} 33... Rf7 {[%clk 0:00:39.4]} 34. Na4 {[%clk 0:00:52.9]} 34...
Ra7 {[%clk 0:00:37.3]} 35. Nc5+ {[%clk 0:00:53.1]} 35... Kf7 {[%clk 0:00:37.5]}
36. Kh2 {[%clk 0:00:50.2]} 36... Ra3 {[%clk 0:00:26.1]} 37. Nb7 {[%clk
0:00:48.3]} 37... Ke6 {[%clk 0:00:21]} 38. Nd8+ {[%clk 0:00:41.1]} 38... Kd7
{[%clk 0:00:20.9]} 39. Nb7 {[%clk 0:00:41.7]} 39... Ra2 {[%clk 0:00:19.2]} 40.
Nc5+ {[%clk 0:00:36.6]} 40... Ke7 {[%clk 0:00:18.3]} 41. Rxa2 {[%clk 0:00:34.2]}
41... Bxa2 {[%clk 0:00:19.2]} 42. Nxe4 {[%clk 0:00:35]} 42... Bd5 {[%clk
0:00:19.3]} 43. Nc5 {[%clk 0:00:31.4]} 43... Bc3 {[%clk 0:00:19]} 44. e4 {[%clk
0:00:29.5]} 44... Bc4 {[%clk 0:00:19.3]} 45. Nb7 {[%clk 0:00:25.5]} 45... Bd4
{[%clk 0:00:17.3]} 46. Bd6+ {[%clk 0:00:23.1]} 46... Kd7 {[%clk 0:00:17.7]} 47.
Bc5 {[%clk 0:00:24]} 47... Be5+ {[%clk 0:00:18]} 48. g3 {[%clk 0:00:23.4]} 48...
g5 {[%clk 0:00:18.5]} 49. Kg2 {[%clk 0:00:23]} 49... Bd3 {[%clk 0:00:17.2]} 50.
Kf3 {[%clk 0:00:22.7]} 50... Ke6 {[%clk 0:00:16.8]} 51. Ke3 {[%clk 0:00:22.8]}
51... Bf1 {[%clk 0:00:15.9]} 52. f4 {[%clk 0:00:20.7]} 52... gxf4+ {[%clk
0:00:15.9]} 53. gxf4 {[%clk 0:00:21.6]} 53... Bc7 {[%clk 0:00:12.7]} 54. h4
{[%clk 0:00:20.5]} 54... Ba6 {[%clk 0:00:09.3]} 55. f5+ {[%clk 0:00:20.5]} 55...
Kd7 {[%clk 0:00:09]} 56. f6 {[%clk 0:00:18]} 56... Be5 {[%clk 0:00:04.2]} 57. f7
{[%clk 0:00:16.8]} 57... Bg7 {[%clk 0:00:04.4]} 58. Nd6 {[%clk 0:00:16.1]} 58...
Ke6 {[%clk 0:00:03.2]} 59. Ne8 {[%clk 0:00:06.8]} 59... Kxf7 {[%clk 0:00:03.3]}
60. Nd6+ {[%clk 0:00:05.7]} 60... Ke6 {[%clk 0:00:03.3]} 61. Nf5 {[%clk
0:00:06.6]} 61... Be5 {[%clk 0:00:02.8]} 62. Kf3 {[%clk 0:00:07.1]} 62... Bd3
{[%clk 0:00:02]} 63. Ke3 {[%clk 0:00:07]} 63... Bc2 {[%clk 0:00:02.3]} 64. Kf3
{[%clk 0:00:07.4]} 64... Bd3 {[%clk 0:00:02.5]} 65. Ne3 {[%clk 0:00:06.9]} 65...
Bb5 {[%clk 0:00:01.4]} 66. Ng4 {[%clk 0:00:07.3]} 66... Bf6 {[%clk 0:00:01.3]}
67. h5 {[%clk 0:00:07.5]} 67... Be5 {[%clk 0:00:01.8]} 68. h6 {[%clk 0:00:07.8]}
68... Bf6 {[%clk 0:00:02.3]} 69. Bf8 {[%clk 0:00:08.1]} 69... Be5 {[%clk
0:00:03.2]} 70. Bg7 {[%clk 0:00:08.7]} 70... Bc4 {[%clk 0:00:03.6]} 71. Bxe5
{[%clk 0:00:08.5]} 1-0

[Event "*** SCC Grand Prix: Titled Tuesday Blitz"]
[Site "Chess.com"]
[Date "2020.08.04"]
[Round "3"]
[White "Chuchofrio1"]
[Black "BernardoRoselli"]
[Result "0-1"]
[WhiteElo "2328"]
[BlackElo "2463"]
[TimeControl "180+1"]
[EndTime "14:14:31 PDT"]
[Termination "BernardoRoselli won by checkmate"]

1. e4 {[%clk 0:03:00.9]} 1... e6 {[%clk 0:02:58.2]} 2. d4 {[%clk 0:03:01.1]}
2... d5 {[%clk 0:02:56.5]} 3. Nc3 {[%clk 0:03:01.7]} 3... Bb4 {[%clk 0:02:55.4]}
4. a3 {[%clk 0:02:59.8]} 4... Bxc3+ {[%clk 0:02:52.6]} 5. bxc3 {[%clk
0:03:00.7]} 5... dxe4 {[%clk 0:02:53.5]} 6. Qg4 {[%clk 0:03:00.7]} 6... Nf6
{[%clk 0:02:54]} 7. Qxg7 {[%clk 0:03:01.2]} 7... Rg8 {[%clk 0:02:54.5]} 8. Qh6
{[%clk 0:03:01.5]} 8... b6 {[%clk 0:02:53.8]} 9. Bg5 {[%clk 0:02:59.7]} 9...
Nbd7 {[%clk 0:02:53]} 10. Ne2 {[%clk 0:02:56.7]} 10... Bb7 {[%clk 0:02:52.9]}
11. Nf4 {[%clk 0:02:56.4]} 11... Qe7 {[%clk 0:02:50]} 12. Rd1 {[%clk 0:02:45.8]}
12... Ng4 {[%clk 0:02:41.4]} 13. Bxe7 {[%clk 0:02:32.1]} 13... Nxh6 {[%clk
0:02:41.3]} 14. Bh4 {[%clk 0:02:31.4]} 14... Nf5 {[%clk 0:02:34.8]} 15. Bg3
{[%clk 0:02:30.5]} 15... O-O-O {[%clk 0:02:32.3]} 16. Bb5 {[%clk 0:02:24.8]}
16... Nf6 {[%clk 0:02:10.1]} 17. Ke2 {[%clk 0:02:09.7]} 17... h5 {[%clk
0:02:01.4]} 18. h3 {[%clk 0:01:18.8]} 18... Nxg3+ {[%clk 0:01:52.6]} 19. fxg3
{[%clk 0:01:19.7]} 19... Rxg3 {[%clk 0:01:52.8]} 20. Rdf1 {[%clk 0:01:19]} 20...
Rxc3 {[%clk 0:01:43]} 21. Nxe6 {[%clk 0:01:14.8]} 21... fxe6 {[%clk 0:01:35.3]}
22. Rxf6 {[%clk 0:01:13.7]} 22... Rxc2+ {[%clk 0:01:32.2]} 23. Ke3 {[%clk
0:01:12.9]} 23... Rc3+ {[%clk 0:01:32.2]} 24. Kf4 {[%clk 0:01:12.5]} 24... a6
{[%clk 0:01:28.4]} 25. Be2 {[%clk 0:01:09.4]} 25... Rxd4 {[%clk 0:01:20.8]} 26.
Rxe6 {[%clk 0:01:09.3]} 26... e3+ {[%clk 0:01:18]} 27. Kg5 {[%clk 0:01:08.3]}
27... Rc5+ {[%clk 0:01:15.7]} 28. Kh6 {[%clk 0:01:05.5]} 28... Rd2 {[%clk
0:01:13.6]} 29. Rxe3 {[%clk 0:01:02]} 29... Bxg2 {[%clk 0:01:07.3]} 30. Rh2
{[%clk 0:00:58.2]} 30... Bf1 {[%clk 0:00:54.3]} 31. Bxa6+ {[%clk 0:00:50.9]}
31... Bxa6 {[%clk 0:00:53.1]} 32. Rxd2 {[%clk 0:00:51.8]} 32... Kb7 {[%clk
0:00:44.7]} 33. Rg2 {[%clk 0:00:49.7]} 33... Bf1 {[%clk 0:00:40.1]} 34. Rg5
{[%clk 0:00:48.9]} 34... Rc6+ {[%clk 0:00:33.6]} 35. Kxh5 {[%clk 0:00:47.5]}
35... Rd6 {[%clk 0:00:34.1]} 36. Kg4 {[%clk 0:00:46.3]} 36... c5 {[%clk
0:00:33.2]} 37. Rf5 {[%clk 0:00:41.8]} 37... Bb5 {[%clk 0:00:31.7]} 38. Rf7+
{[%clk 0:00:36.4]} 38... Ka6 {[%clk 0:00:30.6]} 39. h4 {[%clk 0:00:31.2]} 39...
Rd4+ {[%clk 0:00:26.8]} 40. Kg5 {[%clk 0:00:30]} 40... Rd5+ {[%clk 0:00:26.3]}
41. Rf5 {[%clk 0:00:30.3]} 41... Rd6 {[%clk 0:00:24.2]} 42. h5 {[%clk
0:00:29.6]} 42... Bd3 {[%clk 0:00:24.1]} 43. Rf6 {[%clk 0:00:29.4]} 43... Rd5+
{[%clk 0:00:24.5]} 44. Kg4 {[%clk 0:00:25.1]} 44... c4 {[%clk 0:00:23.7]} 45.
Rc6 {[%clk 0:00:23.7]} 45... Kb5 {[%clk 0:00:23.2]} 46. Rc8 {[%clk 0:00:21.9]}
46... Ka4 {[%clk 0:00:21.8]} 47. Ra8+ {[%clk 0:00:21.8]} 47... Kb3 {[%clk
0:00:21.4]} 48. Rb8 {[%clk 0:00:19.7]} 48... b5 {[%clk 0:00:20.8]} 49. h6 {[%clk
0:00:20.1]} 49... c3 {[%clk 0:00:19.8]} 50. Rxd3 {[%clk 0:00:19.3]} 50... Rxd3
{[%clk 0:00:19.9]} 51. h7 {[%clk 0:00:19.9]} 51... Rd4+ {[%clk 0:00:18.5]} 52.
Kg3 {[%clk 0:00:20.4]} 52... Rd3+ {[%clk 0:00:18.8]} 53. Kg2 {[%clk 0:00:20.7]}
53... Rd2+ {[%clk 0:00:18.1]} 54. Kg3 {[%clk 0:00:21.3]} 54... c2 {[%clk
0:00:12]} 55. Rxb5+ {[%clk 0:00:18.8]} 55... Ka2 {[%clk 0:00:11.3]} 56. Rb2+
{[%clk 0:00:15.4]} 56... Kxb2 {[%clk 0:00:10.7]} 57. h8=Q+ {[%clk 0:00:15.7]}
57... Kb1 {[%clk 0:00:10.7]} 58. Qb8+ {[%clk 0:00:15.6]} 58... Ka2 {[%clk
0:00:10]} 59. Qc7 {[%clk 0:00:14.6]} 59... Kb1 {[%clk 0:00:08.8]} 60. Qb6+
{[%clk 0:00:14.7]} 60... Ka2 {[%clk 0:00:07.1]} 61. Qc5 {[%clk 0:00:15.3]} 61...
Rd3+ {[%clk 0:00:07.1]} 62. Kf2 {[%clk 0:00:14.5]} 62... Kb2 {[%clk 0:00:07.7]}
63. Qb4+ {[%clk 0:00:14.2]} 63... Rb3 {[%clk 0:00:07.5]} 64. Qc4 {[%clk
0:00:14.4]} 64... Rc3 {[%clk 0:00:07.5]} 65. Qb4+ {[%clk 0:00:14.9]} 65... Rb3
{[%clk 0:00:07.6]} 66. Qd4+ {[%clk 0:00:15.5]} 66... Rc3 {[%clk 0:00:07]} 67.
Qb6+ {[%clk 0:00:16.1]} 67... Ka2 {[%clk 0:00:06.1]} 68. Qe6+ {[%clk 0:00:13.2]}
68... Ka1 {[%clk 0:00:06]} 69. Qe1+ {[%clk 0:00:11.8]} 69... c1=Q {[%clk
0:00:05.5]} 70. Qe5 {[%clk 0:00:12]} 70... Qb2+ {[%clk 0:00:04.2]} 71. Ke1
{[%clk 0:00:11.7]} 71... Rc1# {[%clk 0:00:04]} 0-1